bitfinex-derivatives/quotes_BTCF0:USTF0_20251217
["timestamp","ask_amount","ask_price","bid_price","bid_amount"]
[1766009812365,0.3608,86236.0,86215.0,0.0116026]
[1766009812560,0.02261801,86233.0,86223.0,0.3608]
[1766009812765,0.01,86233.0,86223.0,0.3608]
[1766009813966,0.011,86233.0,86223.0,0.3608]
[1766009814359,0.01,86233.0,86223.0,0.3608]
[1766009814660,0.01,86233.0,86223.0,0.3618]
[1766009816972,0.01,86233.0,86230.0,0.3608]
[1766009819067,0.01,86233.0,86210.0,0.18357368]
[1766009819068,0.3608,86231.0,86216.0,0.3608]
[1766009819266,0.3724005,86231.0,86216.0,0.3608]
[1766009819765,0.3608,86217.0,86200.0,0.3608]
[1766009819958,0.3608,86217.0,86202.0,0.0116042]
[1766009820272,0.3608,86217.0,86216.0,0.001]
[1766009820467,0.3608,86217.0,86200.0,0.3608]
[1766009820670,0.3608,86217.0,86201.0,0.0116044]
[1766009820868,0.3608,86217.0,86207.0,0.00117408]
[1766009822466,0.3608,86217.0,86207.0,0.00017408]
[1766009822775,0.3618,86217.0,86207.0,0.00017408]
[1766009823069,0.3608,86217.0,86207.0,0.00017408]
[1766009824777,0.3608,86217.0,86208.0,0.0116035]
[1766009824967,0.3608,86217.0,86207.0,0.00017408]
[1766009825473,0.3608,86217.0,86207.0,0.01177768]
[1766009826062,0.3608,86217.0,86208.0,0.002]
[1766009826474,0.3608,86217.0,86207.0,0.00017408]
[1766009826672,0.3608,86217.0,86208.0,0.0116035]
[1766009826873,0.3608,86217.0,86211.0,0.011603]
[1766009827370,0.0116005,86231.0,86216.0,0.3608]
[1766009827571,0.0116005,86231.0,86225.0,0.3608]
[1766009827970,0.0116003,86232.0,86225.0,0.3608]
[1766009828166,0.01,86233.0,86225.0,0.3608]
[1766009828480,0.01,86233.0,86216.0,0.3608]
[1766009828481,0.3608,86227.0,86216.0,0.3608]
[1766009830064,0.3608,86227.0,86214.0,0.3608]
[1766009830681,0.01,86233.0,86224.0,0.0116014]
[1766009830884,0.01,86233.0,86232.0,0.3608]
[1766009831271,0.01,86233.0,86232.0,0.19413]
[1766009831472,0.01,86233.0,86224.0,0.0116014]
[1766009831881,0.01,86233.0,86223.0,0.3608]
[1766009832472,0.01,86233.0,86226.0,0.0116011]
[1766009832868,0.01,86233.0,86223.0,0.3724015]
[1766009833076,0.01,86233.0,86223.0,0.3608]
[1766009833274,0.01,86233.0,86224.0,0.0116014]
[1766009833982,0.01,86233.0,86223.0,0.3608]
[1766009834280,0.01,86233.0,86224.0,0.0116014]
[1766009837284,0.01,86233.0,86225.0,0.0116011]
[1766009838086,0.01,86233.0,86223.0,0.3724015]
[1766009838585,0.01,86233.0,86225.0,0.0116011]
[1766009838784,0.01,86233.0,86223.0,0.3608]
[1766009839169,0.01,86233.0,86223.0,0.3724014]
[1766009839876,0.01,86233.0,86225.0,0.0116012]
[1766009841282,0.01,86233.0,86223.0,0.3608]
[1766009846089,0.01,86233.0,86214.0,0.50634486]
[1766009846090,0.01,86233.0,86224.0,0.3608]
[1766009852994,0.011,86233.0,86224.0,0.3608]
[1766009853590,0.011,86233.0,86214.0,0.41694486]
[1766009853791,0.0116013,86225.0,86214.0,0.3608]
[1766009854793,0.011601,86227.0,86214.0,0.3608]
[1766009855386,0.011601,86227.0,86214.0,0.3618]
[1766009856194,0.0116012,86226.0,86214.0,0.3618]
[1766009856390,0.0116012,86226.0,86214.0,0.3608]
[1766009860695,0.0116008,86228.0,86214.0,0.3608]
[1766009861400,0.01,86233.0,86224.0,0.3608]
[1766009861703,0.3724007,86229.0,86214.0,0.3608]
[1766009861904,0.3608,86229.0,86214.0,0.3608]
[1766009862309,0.3724007,86229.0,86214.0,0.3608]
[1766009863900,0.3608,86229.0,86214.0,0.3608]
[1766009864805,0.3608,86229.0,86214.0,0.3724026]
[1766009865105,0.3608,86229.0,86214.0,0.3608]
[1766009865304,0.0116009,86228.0,86214.0,0.3608]
[1766009865611,0.3608,86229.0,86214.0,0.3608]
[1766009866399,0.3608,86229.0,86214.0,0.3724026]
[1766009866796,0.3724007,86229.0,86214.0,0.3608]
[1766009867000,0.3608,86229.0,86214.0,0.3608]
[1766009867309,0.3608,86229.0,86214.0,0.3724026]
[1766009868811,0.3608,86229.0,86214.0,0.3608]
[1766009869509,0.3608,86229.0,86215.0,0.0116025]
[1766009870512,0.3608,86229.0,86214.0,0.3618]
[1766009871114,0.3608,86229.0,86215.0,0.0116026]
[1766009874006,0.3608,86229.0,86214.0,0.3608]
[1766009876703,0.011601,86227.0,86214.0,0.3608]
[1766009878815,0.3608,86229.0,86214.0,0.3608]
[1766009879320,0.0116013,86225.0,86214.0,0.3608]
[1766009879512,0.011601,86227.0,86214.0,0.3608]
[1766009881821,0.3608,86229.0,86214.0,0.3608]
[1766009882212,0.0116009,86228.0,86214.0,0.3608]
[1766009885122,0.3608,86229.0,86214.0,0.3608]
[1766009885514,0.3724007,86229.0,86214.0,0.3608]
[1766009886914,0.3608,86229.0,86214.0,0.3608]
[1766009888024,0.3724008,86229.0,86214.0,0.3608]
[1766009889523,0.3608,86229.0,86214.0,0.3724027]
[1766009889722,0.3608,86229.0,86214.0,0.3608]
[1766009889920,0.3608,86229.0,86218.0,0.0116021]
[1766009890520,0.3608,86229.0,86219.0,0.0116019]
[1766009890722,0.3608,86229.0,86221.0,0.3608]
[1766009891321,0.01,86233.0,86228.0,0.3608]
[1766009891525,1e-07,86233.0,86228.0,0.3724007]
[1766009891715,1e-07,86233.0,86229.0,0.0116006]
[1766009892519,1e-07,86233.0,86228.0,0.3608]
[1766009893736,1e-07,86233.0,86231.0,0.3608]
[1766009894225,0.01231121,86243.0,86231.0,0.3608]
[1766009894428,0.01231121,86243.0,86241.0,0.3608]
[1766009895025,0.66905866,86250.0,86241.0,0.3608]
[1766009895415,0.66905866,86250.0,86245.0,0.3608]
[1766009896222,0.6812684,86250.0,86245.0,0.3608]
[1766009896925,0.49964974,86250.0,86245.0,0.3608]
[1766009898827,0.01420974,86250.0,86245.0,0.3608]
[1766009900127,0.01320974,86250.0,86245.0,0.3608]
[1766009900830,0.01320974,86250.0,86245.0,0.7331985]
[1766009901932,4e-08,86250.0,86247.0,0.0115982]
[1766009902335,4e-08,86250.0,86228.0,0.00017398]
[1766009902632,0.3608,86241.0,86228.0,0.00017398]
[1766009903039,0.3723991,86241.0,86228.0,0.00017398]
[1766009903632,0.3608,86241.0,86228.0,0.00017398]
[1766009904429,0.002,86250.0,86239.0,0.0115993]
[1766009904831,0.0115967,86259.0,86239.0,0.0115993]
[1766009905528,0.18361866,86260.0,86238.0,0.3608]
[1766009905529,0.19521516,86260.0,86240.0,0.19521786]
[1766009905740,0.19521516,86260.0,86238.0,0.3608]
[1766009905741,0.02641131,86258.0,86238.0,0.3608]
[1766009905934,0.001,86250.0,86238.0,0.3608]
[1766009906328,0.02641131,86258.0,86238.0,0.3608]
[1766009906529,0.02641131,86258.0,86239.0,0.001]
[1766009906734,0.02641131,86258.0,86239.0,0.0125993]
[1766009907041,0.01481451,86258.0,86239.0,0.0125993]
[1766009908346,0.01481451,86258.0,86239.0,0.0115993]
[1766009908638,0.01481451,86258.0,86241.0,0.011599]
[1766009909032,0.01481451,86258.0,86243.0,0.0115987]
[1766009909539,0.01481451,86258.0,86240.0,0.0115991]
[1766009911936,0.01481451,86258.0,86240.0,0.001]
[1766009911937,0.02641131,86258.0,86240.0,0.001]
[1766009912237,0.0115969,86257.0,86240.0,0.001]
[1766009912440,0.18361866,86250.0,86240.0,0.001]
[1766009912638,0.3608,86248.0,86238.0,0.3608]
[1766009912845,0.3608,86239.0,86228.0,0.01177478]
[1766009913738,0.3608,86239.0,86228.0,0.00017398]
[1766009913933,0.54441866,86260.0,86233.0,0.3608]
[1766009914134,0.54441866,86260.0,86241.0,0.3608]
[1766009914345,0.0115967,86259.0,86241.0,0.3608]
[1766009914545,0.54441866,86260.0,86241.0,0.3608]
[1766009914934,0.54441866,86260.0,86243.0,0.0115988]
[1766009915129,0.54441866,86260.0,86241.0,0.3608]
[1766009915640,0.55601516,86260.0,86241.0,0.3608]
[1766009916636,0.02641131,86258.0,86241.0,0.3608]
[1766009917042,0.0115971,86256.0,86241.0,0.3608]
[1766009917432,0.3608,86242.0,86230.0,0.0116005]
[1766009918036,0.3608,86242.0,86226.0,0.3608]
[1766009918346,0.3608,86242.0,86235.0,0.0115999]
[1766009919448,0.3608,86242.0,86230.0,0.18361866]
[1766009919645,0.3608,86242.0,86234.0,0.0116]
[1766009922551,0.3608,86242.0,86231.0,0.0116003]
[1766009923351,0.3608,86242.0,86232.0,0.0116002]
[1766009924453,0.3608,86242.0,86229.0,0.0116006]
[1766009924649,0.3608,86242.0,86230.0,0.18361866]
[1766009926951,0.3608,86242.0,86229.0,0.001]
[1766009927646,0.3608,86242.0,86227.0,0.0116008]
[1766009928940,0.0115993,86240.0,86228.0,0.00117398]
[1766009929146,0.3608,86234.0,86228.0,0.00117398]
[1766009929547,0.3608,86234.0,86228.0,0.00017398]
[1766009931143,0.3608,86234.0,86228.0,0.00117398]
[1766009931745,0.3608,86234.0,86228.0,0.00017398]
[1766009932750,0.3608,86234.0,86220.0,0.19522056]
[1766009934555,0.0116003,86233.0,86220.0,0.18361866]
[1766009935554,0.3608,86234.0,86220.0,0.18361866]
[1766009936251,0.0116002,86233.0,86218.0,0.00017398]
[1766009936458,0.3608,86234.0,86220.0,0.18361866]
[1766009936653,0.3724001,86234.0,86220.0,0.18361866]
[1766009937346,0.3724001,86234.0,86218.0,0.01177608]
[1766009938748,0.3608,86234.0,86220.0,0.0116019]
[1766009940251,0.3608,86234.0,86222.0,0.0116015]
[1766009941958,0.0116004,86232.0,86218.0,0.00017398]
[1766009942258,0.3608,86234.0,86211.0,0.01]
[1766009942456,0.011601,86227.0,86214.0,0.0116027]
[1766009942662,0.011601,86227.0,86212.0,0.011603]
[1766009943245,0.011601,86227.0,86213.0,0.00017398]
[1766009943450,0.3608,86224.0,86213.0,0.00017398]
[1766009943860,0.3608,86224.0,86216.0,0.001]
[1766009944952,0.3608,86224.0,86213.0,3.98e-06]
[1766009945847,0.0116015,86223.0,86213.0,3.98e-06]
[1766009946050,0.3608,86224.0,86214.0,0.0116026]
[1766009946858,0.3608,86224.0,86216.0,0.0116024]
[1766009947160,0.3608,86224.0,86214.0,0.0116027]
[1766009948962,0.3608,86224.0,86213.0,3.98e-06]
[1766009951963,0.3724015,86224.0,86213.0,3.98e-06]
[1766009955261,0.0116007,86230.0,86215.0,0.0116025]
[1766009955462,0.0116008,86229.0,86215.0,0.0116025]
[1766009955667,0.0116004,86232.0,86218.0,0.0116022]
[1766009956258,0.3724,86234.0,86216.0,0.3608]
[1766009957169,0.3724,86234.0,86219.0,0.011602]
[1766009957663,0.0116004,86232.0,86219.0,0.011602]
[1766009957871,0.3608,86234.0,86217.0,0.0116023]
[1766009958868,0.001,86232.0,86217.0,0.0116023]
[1766009959170,0.0116005,86231.0,86217.0,0.0116023]
[1766009961164,0.0116005,86231.0,86216.0,0.3608]
[1766009964273,0.0116002,86233.0,86217.0,0.0116023]
[1766009964973,0.0116005,86231.0,86216.0,0.3608]
[1766009965173,0.3724014,86224.0,86213.0,3.98e-06]
[1766009965568,0.0116017,86222.0,86213.0,3.98e-06]
[1766009965763,0.3608,86215.0,86199.0,0.36092111]
[1766009966076,0.0116023,86218.0,86199.0,0.00012111]
[1766009966077,0.3608,86209.0,86199.0,0.00012111]
[1766009966472,0.3608,86200.0,86178.0,0.01232079]
[1766009966669,0.3608,86181.0,86178.0,0.01232079]
[1766009967176,0.3608,86181.0,86163.0,0.0116096]
[1766009967363,0.3608,86181.0,86170.0,0.18358601]
[1766009967571,0.3608,86181.0,86161.0,0.3608]
[1766009967572,8.424e-05,86180.0,86169.0,0.0116087]
[1766009968578,0.3608,86191.0,86177.0,0.3608]
[1766009971570,0.3608,86191.0,86184.0,0.3608]
[1766009971875,0.3608,86191.0,86169.0,0.0116087]
[1766009972079,0.3608,86191.0,86168.0,0.3608]
[1766009972080,0.3608,86183.0,86168.0,0.3608]
[1766009973469,0.3608,86176.0,86168.0,0.3608]
[1766009974572,0.3608,86176.0,86166.0,0.00017398]
[1766009975171,0.3618,86176.0,86166.0,0.00017398]
[1766009975774,0.3608,86176.0,86166.0,0.00017398]
[1766009975978,0.3618,86176.0,86166.0,0.00017398]
[1766009977382,0.3608,86176.0,86166.0,0.00017398]
[1766009978082,0.3618,86176.0,86166.0,0.00017398]
[1766009980177,0.3608,86176.0,86166.0,0.00017398]
[1766009981486,0.3618,86176.0,86166.0,0.00017398]
[1766009983575,0.3608,86176.0,86166.0,0.00017398]
[1766009984576,0.3608,86176.0,86168.0,0.0116089]
[1766009985081,0.3608,86176.0,86170.0,0.0116086]
[1766009985280,0.3608,86176.0,86172.0,0.0116083]
[1766009985680,0.3608,86176.0,86169.0,0.0116086]
[1766009988678,0.3608,86176.0,86166.0,0.00017398]
[1766009988889,0.3724078,86176.0,86166.0,0.00017398]
[1766009989488,0.3608,86176.0,86166.0,0.00017398]
[1766009989792,0.3724079,86176.0,86166.0,0.00017398]
[1766009990592,0.3608,86176.0,86160.0,0.0116098]
[1766009990985,0.3618,86176.0,86160.0,0.0116098]
[1766009991183,0.3608,86169.0,86159.0,0.01161]
[1766009991384,0.3608,86169.0,86161.0,0.0116098]
[1766009993986,0.3608,86169.0,86162.0,0.0116096]
[1766009994487,0.3608,86169.0,86163.0,0.0116094]
[1766009995292,0.3608,86169.0,86161.0,0.0116098]
[1766009995495,0.3608,86169.0,86158.0,0.3608]
[1766009996288,0.3608,86169.0,86164.0,0.0116094]
[1766009998095,0.00017408,86174.0,86166.0,0.3608]
[1766009999295,0.00017408,86174.0,86166.0,0.3724092]
[1766010000707,0.00017408,86174.0,86166.0,0.3608]
[1766010001202,0.00117408,86174.0,86166.0,0.3608]
[1766010001498,0.00117408,86174.0,86156.0,0.36097408]
[1766010001499,0.0116095,86164.0,86156.0,0.36097408]
[1766010001699,0.3608,86160.0,86151.0,0.0116111]
[1766010001999,0.3608,86160.0,86150.0,0.0116112]
[1766010002200,0.3608,86160.0,86152.0,0.011611]
[1766010002397,0.01278218,86174.0,86159.0,0.0116101]
[1766010002398,0.0116084,86172.0,86159.0,0.0116101]
[1766010002603,0.0116084,86172.0,86160.0,0.18379157]
[1766010002803,0.00117408,86174.0,86160.0,0.18379157]
[1766010002804,0.00117408,86174.0,86161.0,0.0116098]
[1766010003587,0.00017408,86174.0,86161.0,0.0116098]
[1766010004293,0.00117408,86174.0,86161.0,0.0116098]
[1766010004598,0.00117408,86174.0,86160.0,0.18379157]
[1766010004802,0.00117408,86174.0,86158.0,0.3724101]
[1766010006598,0.00117408,86174.0,86160.0,0.0116099]
[1766010007107,0.00017408,86174.0,86160.0,0.0116099]
[1766010007401,0.00017408,86174.0,86158.0,0.3608]
[1766010007402,0.00017408,86174.0,86166.0,0.3608]
[1766010007792,0.00017408,86174.0,86167.0,0.0116089]
[1766010008213,0.00017408,86174.0,86166.0,0.3608]
[1766010009089,0.00117408,86174.0,86166.0,0.3608]
[1766010012900,0.00117408,86174.0,86168.0,0.3608]
[1766010022410,0.3608,86172.0,86158.0,0.3608]
[1766010022611,0.3608,86159.0,86157.0,8e-08]
[1766010022907,0.3724102,86158.0,86157.0,8e-08]
[1766010023299,0.011611,86153.0,86139.0,0.0116128]
[1766010023499,0.3608,86144.0,86139.0,0.0116128]
[1766010023704,0.3608,86144.0,86140.0,0.0116125]
[1766010024808,0.3608,86144.0,86140.0,0.0126125]
[1766010025209,0.00017408,86151.0,86142.0,0.3724124]
[1766010025405,0.01588691,86151.0,86142.0,0.3724124]
[1766010025606,0.00017408,86151.0,86142.0,0.3724124]
[1766010025912,0.01550562,86151.0,86142.0,0.3724124]
[1766010026113,0.00017408,86151.0,86144.0,0.0116121]
[1766010026409,0.00017408,86151.0,86142.0,0.3608]
[1766010026811,0.00017408,86151.0,86142.0,0.3618]
[1766010027006,0.01178528,86151.0,86142.0,0.3618]
[1766010027206,4.08e-06,86151.0,86146.0,0.0116118]
[1766010028415,4.08e-06,86151.0,86142.0,0.3618]
[1766010028614,4.08e-06,86151.0,86147.0,0.0116117]
[1766010029511,0.3608,86158.0,86142.0,0.3618]
[1766010029512,0.3608,86158.0,86148.0,0.0116116]
[1766010030414,0.37651625,86158.0,86147.0,0.0116116]
[1766010031220,0.0116105,86157.0,86144.0,0.011612]
[1766010031415,0.37651625,86158.0,86142.0,0.3608]
[1766010032314,0.0116109,86153.0,86142.0,0.3608]
[1766010032518,0.0116105,86156.0,86142.0,0.3724123]
[1766010033216,0.0116105,86156.0,86142.0,0.3734123]
[1766010033611,0.0116105,86156.0,86142.0,0.3724123]
[1766010033818,0.0116105,86156.0,86142.0,0.3734123]
[1766010034419,0.0116105,86156.0,86142.0,0.3618]
[1766010035920,0.0116104,86157.0,86142.0,0.3608]
[1766010036122,0.0116104,86157.0,86142.0,0.3618]
[1766010036420,0.37651625,86158.0,86143.0,0.0116122]
[1766010037510,0.37651625,86158.0,86144.0,0.011612]
[1766010038120,0.38812645,86158.0,86144.0,0.011612]
[1766010038321,0.37651625,86158.0,86142.0,0.3608]
[1766010038520,0.37651625,86158.0,86148.0,0.0116115]
[1766010041525,0.37651625,86158.0,86149.0,0.0116114]
[1766010041828,0.37651625,86158.0,86151.0,0.0116111]
[1766010044130,0.0580582,86148.0,86105.0,1e-08]
[1766010044314,0.00099999,86110.0,86098.0,5e-08]
[1766010044515,0.0116189,86095.0,86060.0,0.18383521]
[1766010044714,0.0116189,86095.0,86058.0,0.00232403]
[1766010044715,0.3608,86077.0,86059.0,0.3608]
[1766010044916,0.0116205,86083.0,86062.0,0.0116232]
[1766010045117,0.0116205,86083.0,86058.0,0.00232403]
[1766010045118,0.3608,86063.0,86058.0,0.00232403]
[1766010046228,0.3608,86063.0,86052.0,0.00017421]
[1766010046229,0.3598,86059.0,86052.0,0.00017421]
[1766010047524,0.3598,86059.0,86052.0,0.00117421]
[1766010049327,0.4812,86058.0,86052.0,0.00117421]
[1766010049721,0.72748,86057.0,86052.0,0.00117421]
[1766010051016,0.72748,86057.0,86052.0,0.00017421]
[1766010051217,0.3608,86054.0,86052.0,0.00017421]
[1766010051827,0.72764,86053.0,86052.0,0.00017421]
[1766010052027,0.3608,86054.0,86052.0,0.00017421]
[1766010052226,0.7276,86053.0,86052.0,0.00017421]
[1766010053934,1.0884,86053.0,86052.0,0.00017421]
[1766010054334,1.0884,86053.0,86036.0,0.0116266]
[1766010054634,0.00099999,86050.0,86041.0,0.3608]
[1766010056918,0.00099999,86050.0,86041.0,0.3618]
[1766010058234,0.00099999,86050.0,86041.0,0.001]
[1766010062728,0.011625,86049.0,86041.0,0.001]
[1766010063323,0.01262489,86050.0,86041.0,0.001]
[1766010063729,0.00099999,86050.0,86041.0,0.001]
[1766010063928,0.00099999,86050.0,86036.0,0.0116266]
[1766010064830,0.00099999,86050.0,86038.0,0.0116264]
[1766010066727,0.00099999,86050.0,86035.0,0.0116268]
[1766010066931,0.0116252,86048.0,86030.0,0.3608]
[1766010067327,0.0116252,86048.0,86036.0,0.001]
[1766010067527,0.00099999,86050.0,86036.0,0.0126267]
[1766010069232,0.24163999,86050.0,86036.0,0.0126267]
[1766010070131,0.3608,86045.0,86036.0,0.0126267]
[1766010070332,0.3608,86045.0,86036.0,0.0116267]
[1766010071843,0.3608,86045.0,86036.0,0.0126267]
[1766010073937,0.3608,86045.0,86036.0,0.0116267]
[1766010074138,0.3608,86045.0,86036.0,0.0126267]
[1766010076242,0.3608,86045.0,86037.0,0.0116264]
[1766010080350,0.02543475,86044.0,86037.0,0.0116264]
[1766010080543,0.3608,86045.0,86037.0,0.0116264]
[1766010080744,0.02543475,86044.0,86037.0,0.0116264]
[1766010080944,0.3608,86045.0,86037.0,0.0116264]
[1766010081144,0.02543475,86044.0,86037.0,0.0116264]
[1766010081444,0.3608,86045.0,86037.0,0.0116264]
[1766010081650,0.02543629,86044.0,86037.0,0.0116264]
[1766010081952,0.3608,86045.0,86030.0,0.3608]
[1766010082154,0.02543629,86044.0,86037.0,0.0116265]
[1766010082451,0.3608,86045.0,86037.0,0.0116265]
[1766010082650,0.02543943,86044.0,86037.0,0.0116265]
[1766010082847,0.3608,86045.0,86037.0,0.0116265]
[1766010083054,0.3608,86045.0,86030.0,0.3608]
[1766010083055,0.02543943,86044.0,86038.0,0.0116263]
[1766010083243,0.3608,86045.0,86038.0,0.0116263]
[1766010083442,0.02533402,86044.0,86038.0,0.0116263]
[1766010083650,0.3608,86045.0,86038.0,0.0116263]
[1766010083953,0.38613402,86044.0,86038.0,0.0116263]
[1766010084153,0.3608,86044.0,86036.0,0.0116267]
[1766010084953,0.3608,86044.0,86038.0,0.001]
[1766010085364,0.02533861,86043.0,86038.0,0.001]
[1766010085653,0.3608,86044.0,86036.0,0.0126267]
[1766010085853,0.02533861,86043.0,86036.0,0.0126267]
[1766010086052,0.00017431,86046.0,86041.0,0.3608]
[1766010086354,1e-08,86046.0,86041.0,0.3608]
[1766010086950,1e-08,86046.0,86043.0,0.0116257]
[1766010088258,1e-08,86046.0,86043.0,0.0126257]
[1766010089341,1e-08,86046.0,86043.0,0.001]
[1766010090557,1e-08,86046.0,86045.0,0.3608]
[1766010092349,1e-08,86046.0,86045.0,0.3724255]
[1766010092657,1e-08,86046.0,86045.0,0.3608]
[1766010097960,0.00012028,86062.0,86045.0,0.3608]
[1766010098156,8e-08,86062.0,86061.0,0.3608]
[1766010099164,8e-08,86062.0,86061.0,0.3724233]
[1766010099360,9e-08,86070.0,86067.0,0.0116225]
[1766010099657,0.3608,86078.0,86067.0,0.0116225]
[1766010100558,4.621e-05,86077.0,86067.0,0.0116225]
[1766010100765,4.621e-05,86077.0,86067.0,0.0126225]
[1766010101153,4.621e-05,86077.0,86067.0,0.0116225]
[1766010101360,4.621e-05,86077.0,86069.0,0.0116222]
[1766010101557,4.621e-05,86077.0,86068.0,0.3608]
[1766010101760,0.00017431,86081.0,86076.0,0.3608]
[1766010103464,0.00117431,86081.0,86076.0,0.3608]
[1766010106654,0.0116181,86101.0,86080.0,0.3608]
[1766010106859,0.0116171,86107.0,86099.0,0.3608]
[1766010107664,0.01630411,86107.0,86099.0,0.3608]
[1766010107965,0.0116168,86110.0,86099.0,0.3608]
[1766010108163,0.3608,86111.0,86099.0,0.3608]
[1766010108360,0.00099999,86100.0,86094.0,0.00017421]
[1766010108864,0.00099999,86100.0,86094.0,4.21e-06]
[1766010110363,0.3724176,86104.0,86094.0,4.21e-06]
[1766010110566,0.00099999,86100.0,86094.0,4.21e-06]
[1766010110959,0.011618,86101.0,86094.0,4.21e-06]
[1766010111166,0.00099999,86100.0,86094.0,4.21e-06]
[1766010111662,0.3724176,86104.0,86094.0,4.21e-06]
[1766010111861,0.00099999,86100.0,86094.0,4.21e-06]
[1766010112256,0.3608,86104.0,86094.0,4.21e-06]
[1766010113169,0.3724176,86104.0,86094.0,4.21e-06]
[1766010114369,0.00099999,86100.0,86094.0,4.21e-06]
[1766010116472,0.00199999,86100.0,86094.0,4.21e-06]
[1766010117058,0.01361809,86100.0,86094.0,4.21e-06]
[1766010117260,0.0116184,86098.0,86094.0,4.21e-06]
[1766010118267,0.00199999,86100.0,86094.0,4.21e-06]
[1766010118463,0.001,86100.0,86094.0,4.21e-06]
[1766010118668,0.00199999,86100.0,86094.0,4.21e-06]
[1766010119559,0.3608,86101.0,86094.0,4.21e-06]
[1766010119767,0.001,86098.0,86094.0,4.21e-06]
[1766010119964,0.3618,86098.0,86094.0,4.21e-06]
[1766010120173,0.3608,86098.0,86094.0,4.21e-06]
[1766010120874,0.3618,86098.0,86094.0,4.21e-06]
[1766010127172,0.001,86098.0,86094.0,4.21e-06]
[1766010128163,0.001,86098.0,86095.0,0.0116187]
[1766010128359,0.3608,86108.0,86094.0,4.21e-06]
[1766010128569,0.0116155,86120.0,86094.0,4.21e-06]
[1766010128773,0.0116164,86113.0,86099.0,0.3608]
[1766010128979,0.0173684,86112.0,86100.0,0.011618]
[1766010129274,0.00017421,86112.0,86102.0,0.0116178]
[1766010129664,0.00017421,86112.0,86099.0,0.3724181]
[1766010130068,0.00099999,86110.0,86099.0,0.3724181]
[1766010130368,0.36179999,86100.0,86094.0,4.21e-06]
[1766010130760,0.37341809,86100.0,86094.0,4.21e-06]
[1766010130966,0.0116184,86098.0,86094.0,4.21e-06]
[1766010131765,0.36179999,86100.0,86094.0,4.21e-06]
[1766010132473,0.36179999,86100.0,86094.0,0.00100421]
[1766010134570,0.3608,86100.0,86094.0,0.00100421]
[1766010134768,0.36179999,86100.0,86094.0,0.00100421]
[1766010134969,0.3608,86100.0,86094.0,0.00100421]
[1766010135168,0.36279999,86100.0,86094.0,4.21e-06]
[1766010136077,0.3608,86095.0,86094.0,4.21e-06]
[1766010138183,0.3618,86095.0,86094.0,4.21e-06]
[1766010143487,0.3608,86095.0,86094.0,4.21e-06]
[1766010143681,0.3618,86095.0,86094.0,4.21e-06]
[1766010144082,0.3608,86095.0,86094.0,4.21e-06]
[1766010144281,0.3618,86095.0,86094.0,4.21e-06]
[1766010146583,0.3608,86095.0,86094.0,4.21e-06]
[1766010146787,0.3618,86095.0,86094.0,4.21e-06]
[1766010147186,0.3608,86095.0,86094.0,4.21e-06]
[1766010147393,0.3618,86095.0,86094.0,4.21e-06]
[1766010150479,0.3608,86095.0,86094.0,4.21e-06]
[1766010150683,0.3618,86095.0,86094.0,4.21e-06]
[1766010154992,0.001,86095.0,86094.0,4.21e-06]
[1766010155197,0.3618,86095.0,86094.0,4.21e-06]
[1766010156099,0.00099999,86100.0,86094.0,4.21e-06]
[1766010158001,0.0116173,86107.0,86094.0,4.21e-06]
[1766010158190,0.00099999,86100.0,86094.0,4.21e-06]
[1766010158496,0.00099999,86100.0,86094.0,0.01162301]
[1766010159201,0.3608,86108.0,86094.0,4.21e-06]
[1766010159496,0.0116172,86107.0,86094.0,4.21e-06]
[1766010160007,0.00099999,86100.0,86094.0,4.21e-06]
[1766010160390,0.00099999,86100.0,86094.0,0.00100421]
[1766010160792,0.0116172,86107.0,86094.0,0.00100421]
[1766010160999,0.00099999,86100.0,86094.0,0.00100421]
[1766010161402,0.0116172,86107.0,86094.0,0.00100421]
[1766010161599,0.3608,86108.0,86094.0,0.00100421]
[1766010161905,0.00017421,86112.0,86103.0,0.3608]
[1766010162095,0.00017421,86112.0,86108.0,0.011617]
[1766010162398,0.00017421,86112.0,86103.0,0.3608]
[1766010162598,0.00017421,86112.0,86107.0,0.0116171]
[1766010163006,0.00017421,86112.0,86109.0,0.0116168]
[1766010163007,1e-08,86112.0,86109.0,0.0116168]
[1766010163493,1e-08,86112.0,86111.0,0.3608]
[1766010166908,0.00099999,86120.0,86111.0,0.3724165]
[1766010167106,0.01803747,86120.0,86111.0,0.3724165]
[1766010167307,0.01703748,86120.0,86113.0,0.0116163]
[1766010167504,0.3608,86125.0,86113.0,0.0116163]
[1766010167708,0.00099999,86120.0,86113.0,0.0116163]
[1766010168001,0.00017421,86128.0,86119.0,0.3608]
[1766010168205,0.00017421,86128.0,86119.0,0.3724154]
[1766010169502,0.00017421,86128.0,86119.0,0.3734154]
[1766010170406,0.00017421,86128.0,86119.0,0.3618]
[1766010171906,0.01733637,86128.0,86119.0,0.3618]
[1766010172213,0.00017421,86128.0,86121.0,0.0116152]
[1766010172507,0.3608,86136.0,86121.0,0.0116152]
[1766010173206,0.37799351,86136.0,86121.0,0.0116152]
[1766010173610,0.01719351,86136.0,86127.0,0.3608]
[1766010173810,0.0116133,86136.0,86127.0,0.3608]
[1766010174198,0.02939206,86136.0,86127.0,0.3608]
[1766010175112,0.03039206,86136.0,86127.0,0.3608]
[1766010176011,0.02939206,86136.0,86127.0,0.3608]
[1766010176218,0.03039206,86136.0,86127.0,0.3608]
[1766010177003,0.39119206,86136.0,86127.0,0.3608]
[1766010177506,0.37957876,86136.0,86127.0,0.3608]
[1766010177719,0.0116133,86135.0,86127.0,0.3608]
[1766010178518,0.0116136,86133.0,86127.0,0.3608]
[1766010178712,0.37857876,86136.0,86127.0,0.3608]
[1766010178916,0.001,86135.0,86127.0,0.3608]
[1766010179920,0.0116139,86132.0,86127.0,0.3608]
[1766010180308,0.3608,86128.0,86118.0,0.52344]
[1766010180508,0.3608,86128.0,86118.0,0.5350556]
[1766010181116,0.3608,86128.0,86122.0,0.0116151]
[1766010181314,0.19413,86128.0,86122.0,0.0116151]
[1766010181514,0.18415932,86132.0,86123.0,0.3608]
[1766010181819,0.18415932,86133.0,86123.0,0.3608]
[1766010182213,0.37857876,86136.0,86123.0,0.3608]
[1766010183120,0.37857876,86136.0,86123.0,0.3724149]
[1766010183303,0.37857876,86136.0,86123.0,0.3608]
[1766010183508,0.39019206,86136.0,86123.0,0.3608]
[1766010184219,0.39019206,86136.0,86123.0,0.3618]
[1766010184606,0.37857876,86136.0,86126.0,0.0116145]